fUSD/lending_fUSD_20240408
["ID","MTS","AMOUNT","RATE_DAILY","PERIOD"]
[321839587,1712557846199,-863.62,0.00020999,2]
[321839588,1712557846208,-863.62,0.00020999,2]
[321839589,1712557846218,-863.62,0.00020999,2]
[321839590,1712557846228,-863.62,0.00020999,2]
[321839591,1712557846237,-863.62,0.00020999,2]
[321839592,1712557846246,-863.62,0.00020999,2]
[321839593,1712557846255,-863.62,0.00020999,2]
[321839594,1712557846264,-863.78121011,0.00020999,2]
[321839595,1712557846274,-637.22,0.00020999,2]
[321839596,1712557846283,-637.22,0.00020999,2]
[321839597,1712557846292,-637.22,0.00020999,2]
[321839598,1712557846301,-637.22,0.00020999,2]
[321839599,1712557846310,-637.22,0.00020999,2]
[321839600,1712557846320,-637.22,0.00020999,2]
[321839601,1712557846329,-637.22,0.00020999,2]
[321839602,1712557846338,-637.22,0.00020999,2]
[321839603,1712557846347,-637.22,0.00020999,2]
[321839604,1712557846357,-637.22,0.00020999,2]
[321839605,1712557846367,-637.22,0.00020999,2]
[321839606,1712557846378,-637.22,0.00020999,2]
[321839607,1712557846387,-637.22,0.00020999,2]
[321839608,1712557846396,-637.22,0.00020999,2]
[321839609,1712557846406,-637.22,0.00020999,2]
[321839610,1712557846416,-637.22,0.00020999,2]
[321839611,1712557846426,-637.22,0.00020999,2]
[321839612,1712557846435,-637.22,0.00020999,2]
[321839613,1712557846444,-637.22,0.00020999,2]
[321839614,1712557846454,-637.3,0.00020999,2]
[321839615,1712557846463,-500.0,0.00020999,2]
[321839616,1712557846474,-528.29591391,0.00020999,2]
[321839617,1712557846483,-500.0,0.00020999,2]
[321839618,1712557846494,-500.0,0.00020999,2]
[321839619,1712557846504,-500.0,0.00020999,2]
[321839620,1712557846515,-500.0,0.00020999,2]
[321839621,1712557846526,-500.0,0.00020999,2]
[321839622,1712557846536,-500.0,0.00020999,2]
[321839623,1712557846546,-302.71763864,0.00020999,2]
[321839624,1712557846556,-500.0,0.00020999,2]
[321839625,1712557846566,-500.0,0.00020999,2]
[321839626,1712557846576,-500.0,0.00020999,2]
[321839627,1712557846586,-500.0,0.00020999,2]
[321839628,1712557846596,-500.0,0.00020999,2]
[321839629,1712557846606,-500.0,0.00020999,2]
[321839630,1712557846616,-500.0,0.00020999,2]
[321839631,1712557846627,-500.0,0.00020999,2]
[321839632,1712557846637,-484.19583229,0.00020999,2]
[321839633,1712557846648,-733.8,0.00020999,2]
[321839634,1712557846658,-733.8,0.00020999,2]
[321839635,1712557846667,-733.8,0.00020999,2]
[321839636,1712557846677,-733.8,0.00020999,2]
[321839637,1712557846686,-733.8,0.00020999,2]
[321839638,1712557846696,-733.8,0.00020999,2]
[321839639,1712557846706,-733.8,0.00020999,2]
[321839640,1712557846715,-733.8,0.00020999,2]
[321839641,1712557846725,-733.8,0.00020999,2]
[321839642,1712557846734,-733.8,0.00020999,2]
[321839643,1712557846743,-733.8,0.00020999,2]
[321839644,1712557846753,-733.8,0.00020999,2]
[321839645,1712557846765,-733.8,0.00020999,2]
[321839646,1712557846782,-733.8,0.00020999,2]
[321839647,1712557846792,-733.8,0.00020999,2]
[321839648,1712557846801,-733.8,0.00020999,2]
[321839649,1712557846811,-733.8,0.00020999,2]
[321839650,1712557846824,-733.8,0.00020999,2]
[321839651,1712557846834,-733.8,0.00020999,2]
[321839652,1712557846843,-733.92602624,0.00020999,2]
[321839653,1712557846854,-500.0,0.00020999,2]
[321839654,1712557846863,-500.0,0.00020999,2]
[321839655,1712557846873,-596.67369105,0.00020999,2]
[321839656,1712557846885,-500.0,0.00020999,2]
[321839657,1712557846894,-500.0,0.00020999,2]
[321839658,1712557846904,-500.0,0.00020999,2]
[321839659,1712557846913,-500.0,0.00020999,2]
[321839660,1712557846925,-500.0,0.00020999,2]
[321839661,1712557846936,-309.00403778,0.00020999,2]
[321839662,1712557846946,-500.0,0.00020999,2]
[321839663,1712557846957,-500.0,0.00020999,2]
[321839664,1712557846966,-500.0,0.00020999,2]
[321839665,1712557846976,-500.0,0.00020999,2]
[321839666,1712557846985,-500.0,0.00020999,2]
[321839667,1712557846995,-500.0,0.00020999,2]
[321839668,1712557847004,-500.0,0.00020999,2]
[321839669,1712557847013,-500.0,0.00020999,2]
[321839670,1712557847023,-555.37171456,0.00020999,2]
[321839671,1712557847033,-1051.43,0.00020999,2]
[321839672,1712557847042,-1051.43,0.00020999,2]
[321839673,1712557847051,-1051.43,0.00020999,2]
[321839674,1712557847060,-1051.43,0.00020999,2]
[321839675,1712557847069,-500.0,0.00020999,2]
[321839676,1712557847079,-1051.43,0.00020999,2]
[321839677,1712557847088,-500.0,0.00020999,2]
[321839678,1712557847098,-1051.43,0.00020999,2]
[321839679,1712557847107,-500.0,0.00020999,2]
[321839680,1712557847117,-1051.43,0.00020999,2]
[321839681,1712557847127,-500.0,0.00020999,2]
[321839682,1712557847136,-1051.43,0.00020999,2]
[321839683,1712557847145,-500.0,0.00020999,2]
[321839684,1712557847155,-1051.43,0.00020999,2]
[321839685,1712557847164,-500.0,0.00020999,2]
[321839686,1712557847173,-500.0,0.00020999,2]
[321839687,1712557847183,-1051.43,0.00020999,2]
[321839688,1712557847193,-244.72,0.00020999,2]
[321839689,1712557847202,-1051.43,0.00020999,2]
[321839690,1712557847212,-1051.43,0.00020999,2]
[321839691,1712557847222,-1051.43,0.00020999,2]
[321839692,1712557847231,-1051.43,0.00020999,2]
[321839693,1712557847241,-1051.43,0.00020999,2]
[321839694,1712557847251,-1051.43,0.00020999,2]
[321839695,1712557847262,-1051.43,0.00020999,2]
[321839696,1712557847273,-1051.43,0.00020999,2]
[321839697,1712557847282,-1051.43,0.00020999,2]
[321839698,1712557847292,-1051.50103587,0.00020999,2]
[321839699,1712557847302,-500.0,0.00020999,2]
[321839700,1712557847311,-500.0,0.00020999,2]
[321839701,1712557847493,-500.0,0.00020999,2]
[321839702,1712557847504,-500.0,0.00020999,2]
[321839703,1712557847514,-500.0,0.00020999,2]
[321839704,1712557847523,-500.0,0.00020999,2]
[321839705,1712557847533,-500.0,0.00020999,2]
[321839706,1712557847543,-500.0,0.00020999,2]
[321839707,1712557847553,-500.0,0.00020999,2]
[321839708,1712557847563,-500.0,0.00020999,2]
[321839709,1712557847572,-368517.68178259,0.00021,2]
[321839710,1712557847772,-395723.42110396,0.00021,2]
[321839711,1712557848010,-1344.33106011,0.00018099,2]
[321839712,1712557848056,-500.91,0.00018099,2]
[321839713,1712557848076,-655.93664526,0.00018099,2]
[321839714,1712557848471,-346.494995,0.00018099,2]
[321839715,1712557848483,-509.322473,0.00018099,2]
[321839716,1712557848499,-955.62196819,0.00018099,2]
[321839717,1712557848509,-150.0,0.00020602,2]
[321839718,1712557848519,-500.0,0.00020821,2]
[321839719,1712557848528,-500.0,0.00020821,2]
[321839720,1712557848538,-500.0,0.00020821,2]
[321839721,1712557848547,-500.0,0.00020821,2]
[321839722,1712557848556,-500.0,0.00020821,2]
[321839723,1712557848566,-500.0,0.00020821,2]
[321839724,1712557848575,-500.0,0.00020821,2]
[321839725,1712557848584,-500.0,0.00020821,2]
[321839726,1712557848593,-500.0,0.00020821,2]
[321839727,1712557848602,-438.018,0.00020982,2]
[321839728,1712557848611,-517.3372147,0.00020997,2]
[321839729,1712557848621,-589.04,0.00020998,2]
[321839730,1712557848630,-235.12,0.00020998,2]
[321839731,1712557848640,-589.04,0.00020998,2]
[321839732,1712557848650,-500.0,0.00020998,2]
[321839733,1712557848660,-500.0,0.00020998,2]
[321839734,1712557848670,-500.0,0.00020998,2]
[321839735,1712557848678,-500.0,0.00020998,2]
[321839736,1712557848688,-500.0,0.00020998,2]
[321839737,1712557848697,-500.0,0.00020998,2]
[321839738,1712557848706,-500.0,0.00020999,2]
[321839739,1712557848716,-264.90001095,0.00020999,2]
[321839740,1712557848726,-589.04,0.00020999,2]
[321839741,1712557848735,-589.04,0.00020999,2]
[321839742,1712557848744,-589.04,0.00020999,2]
[321839743,1712557848753,-589.04,0.00020999,2]
[321839744,1712557848763,-589.04,0.00020999,2]
[321839745,1712557848772,-589.04,0.00020999,2]
[321839746,1712557848782,-589.04,0.00020999,2]
[321839747,1712557848791,-589.04,0.00020999,2]
[321839748,1712557848801,-589.04,0.00020999,2]
[321839749,1712557848810,-589.04,0.00020999,2]
[321839750,1712557848821,-284.69666851,0.00020999,2]
[321839751,1712557848832,-589.04,0.00020999,2]
[321839752,1712557848842,-589.04,0.00020999,2]
[321839753,1712557848852,-589.04,0.00020999,2]
[321839754,1712557848862,-500.0,0.00020999,2]
[321839755,1712557848872,-589.04,0.00020999,2]
[321839756,1712557848883,-568638.01604589,0.00021,2]
[321839757,1712557848931,-5984.81235928,0.00021,2]
[321839758,1712557848943,-10760.36094292,0.00021,2]
[321839759,1712557848982,-1851.44809297,0.00020982,2]
[321839760,1712557848994,-106.67890703,0.00020982,2]
[321839761,1712557849003,-500.0,0.00020999,2]
[321839762,1712557849013,-589.04,0.00020999,2]
[321839763,1712557849024,-5550.50561334,0.00021,2]
[321839764,1712557849284,-246.43,0.00018694,2]
[321839765,1712557849294,-305.58313579,0.00020601,2]
[321839766,1712557849304,-155.0,0.00020601,2]
[321839767,1712557849313,-1000.0,0.0002072,2]
[321839768,1712557849322,-500.0,0.00020821,2]
[321839769,1712557849331,-500.0,0.00020821,2]
[321839770,1712557849341,-500.0,0.00020821,2]
[321839771,1712557849349,-500.0,0.00020821,2]
[321839772,1712557849359,-246.43,0.00020957,2]
[321839773,1712557849368,-811.915,0.00020982,2]
[321839774,1712557849377,-345.5,0.00020999,2]
[321839775,1712557849387,-589.04,0.00020999,2]
[321839776,1712557849396,-589.04,0.00020999,2]
[321839777,1712557849405,-589.04,0.00020999,2]
[321839778,1712557849415,-589.04,0.00020999,2]
[321839779,1712557849423,-589.12039998,0.00020999,2]
[321839780,1712557849433,-33241.95913495,0.00021,2]
[321839781,1712557849444,-1986.41,0.00021,2]
[321839782,1712557849456,-1213.302,0.00021,2]
[321839783,1712557849478,-500.0,0.00020998,2]
[321839784,1712557849488,-554.922735,0.00021,2]
[321839785,1712557876605,2629.44637717,0.00018898,5]
[321839788,1712558046622,294.0,0.000265,20]
[321839789,1712558224190,188.0947876,0.00017975,2]
[321839790,1712558258606,529.89940497,0.00017973,2]
[321839794,1712558407642,214.10568484,0.00017805,2]
[321839795,1712558407671,93.34431516,0.00017805,2]
[321839797,1712558482486,181.4128596,0.00017805,2]
[321839798,1712558483911,1506.81038019,0.00017805,2]
[321839799,1712558487172,739.74644294,0.00017805,2]
[321839800,1712558509029,287.80437565,0.00017805,2]
[321839801,1712558522958,288.2163556,0.00017805,2]
[321839805,1712558706827,275.0,0.000265,20]
[321839806,1712558778792,1290.89052335,0.00017253,2]
[321839807,1712558802660,938.20053305,0.0001796,2]
[321839808,1712558805486,531.78908268,0.0001796,2]
[321839809,1712558806916,193.840469,0.00017962,2]
[321839810,1712558818631,188.09478761,0.00017953,2]
[321839811,1712558831692,27552.531,0.00018,2]
[321839812,1712558839189,19633.18645277,0.00017962,2]
[321839813,1712558853185,6545.66890056,0.00017962,2]
[321839814,1712558864827,5850.76,0.00017735,2]
[321839816,1712558881440,379.61,0.00015597,2]
[321839817,1712558881560,5668.8852,0.00017961,2]
[321839818,1712558881648,379.61,0.00017861,2]
[321839819,1712558908067,321.26,0.00017326,2]
[321839820,1712558942285,23900.0,0.00017148,2]
[321839821,1712558986265,157.14,0.00017441,2]
[321839822,1712558986571,157.14,0.00017623,2]
[321839823,1712558986937,157.14,0.00017805,2]
[321839824,1712558987162,157.14,0.00017987,2]
[321839825,1712559004889,160.92,0.00017244,2]
[321839826,1712559017986,271.69,0.00013763,2]
[321839845,1712559032151,-201.84235747,0.00018017,2]
[321839846,1712559032162,-2349.93858112,0.00018018,2]
[321839847,1712559032173,-1572.77206141,0.00018018,2]
[321839848,1712559032265,-2610.65952284,0.00018018,2]
[321839849,1712559037601,13623.6176,0.00017937,2]
[321839859,1712559038063,-155.0,0.00018017,2]
[321839860,1712559038073,-156.86781871,0.00018017,2]
[321839861,1712559038082,-534.09803923,0.00018018,2]
[321839862,1712559038091,-236.17575592,0.00018018,2]
[321839863,1712559038100,-404.73102028,0.00018018,2]
[321839864,1712559038109,-259.85940966,0.00018018,2]
[321839865,1712559038118,-362.35522605,0.00018019,2]
[321839866,1712559038128,-278.40403451,0.00018019,2]
[321839867,1712559038137,-161.1031879,0.00018019,2]
[321839868,1712559038147,-1296.33667789,0.00018019,2]
[321839869,1712559038156,-1086.90534641,0.00018019,2]
[321839870,1712559038178,-22211.08101708,0.00018019,2]
[321839871,1712559038187,-1969.2080462,0.0001802,2]
[321839872,1712559038196,-155.0,0.0001802,2]
[321839873,1712559038205,-266.79799477,0.0001802,2]
[321839874,1712559038214,-500.0,0.0001802,2]
[321839875,1712559038224,-809.2469135,0.0001802,2]
[321839876,1712559038233,-217.54377833,0.0001802,2]
[321839877,1712559038242,-35172.75966604,0.0001802,2]
[321839878,1712559038251,-4572.46475471,0.00018021,2]
[321839879,1712559038260,-1000.0,0.00018021,2]
[321839880,1712559038269,-736.44917426,0.00018021,2]
[321839881,1712559038278,-3374.83061436,0.00018022,2]
[321839882,1712559038287,-3074.91342229,0.00018022,2]
[321839883,1712559038296,-408.09213224,0.00018023,2]
[321839884,1712559038305,-200.0,0.00018023,2]
[321839885,1712559038314,-486.13738985,0.00018023,2]
[321839886,1712559038323,-4466.38983632,0.00018023,2]
[321839887,1712559038332,-155.0,0.00018024,2]
[321839888,1712559038342,-1058.17735735,0.00018024,2]
[321839889,1712559038351,-1043.11487871,0.00018024,2]
[321839890,1712559038360,-1043.11487871,0.00018024,2]
[321839891,1712559038369,-22758.5134184,0.00018024,2]
[321839892,1712559038378,-50000.0,0.00018024,2]
[321839893,1712559038387,-8884.61561225,0.00018025,2]
[321839894,1712559038396,-293.0,0.00018033,2]
[321839895,1712559038406,-10773.63,0.00018033,2]
[321839896,1712559038417,-150.0,0.00018038,2]
[321839897,1712559038425,-150.0,0.00018038,2]
[321839898,1712559038434,-20393.4484056,0.00018039,2]
[321839899,1712559038443,-35793.176831,0.0001805,2]
[321839900,1712559038452,-2173.81938731,0.00018051,2]
[321839901,1712559038461,-884.37096311,0.00018054,2]
[321839902,1712559038471,-442969.56567658,0.00018059,2]
[321839904,1712559038480,-19391.66059012,0.0001806,2]
[321839906,1712559038489,-1050.31416376,0.00018064,2]
[321839908,1712559038498,-150.0,0.00018137,2]
[321839910,1712559038507,-205.88907818,0.00018161,2]
[321839912,1712559038517,-155.0,0.00018161,2]
[321839914,1712559038526,-407.38638937,0.00018161,2]
[321839916,1712559038535,-400.0,0.00018161,2]
[321839918,1712559038544,-199.78642941,0.00018161,2]
[321839920,1712559038553,-215.47501592,0.00018161,2]
[321839922,1712559038562,-155.48260179,0.00018161,2]
[321839924,1712559038571,-704.64333317,0.00018161,2]
[321839926,1712559038580,-193.8903618,0.00018161,2]
[321839928,1712559038589,-662.07520958,0.00018161,2]
[321839929,1712559038598,-155.49454204,0.00018161,2]
[321839930,1712559038608,-155.3250008,0.00018161,2]
[321839931,1712559038617,-622.59179802,0.00018161,2]
[321839932,1712559038626,-155.0,0.00018161,2]
[321839933,1712559038635,-779.36919387,0.00018161,2]
[321839934,1712559038644,-164.08625314,0.00018161,2]
[321839935,1712559038653,-2353.80413367,0.00018161,2]
[321839936,1712559038663,-10544.41495387,0.00018161,2]
[321839937,1712559038672,-5375.52133588,0.00018161,2]
[321839938,1712559038681,-155.0,0.00018161,2]
[321839939,1712559038690,-166.91997935,0.00018161,2]
[321839940,1712559038699,-536.60711953,0.00018162,2]
[321839941,1712559038709,-5532.00830868,0.00018162,2]
[321839942,1712559038718,-157.14,0.00018169,2]
[321839943,1712559038728,-938.20053297,0.00018287,2]
[321839944,1712559038737,-157.14,0.0001835,2]
[321839945,1712559038746,-1050.31416371,0.00018379,2]
[321839946,1712559038755,-938.20053297,0.00018613,2]
[321839947,1712559038765,-1050.31416371,0.00018694,2]
[321839948,1712559038773,-800.0,0.00018814,2]
[321839949,1712559038783,-938.20053297,0.0001894,2]
[321839950,1712559038792,-1750.0,0.00019,3]
[321839951,1712559038801,-1050.31416371,0.00019009,2]
[321839952,1712559038810,-938.20053297,0.00019267,2]
[321839953,1712559038819,-153.77,0.00019315,2]
[321839954,1712559038828,-1050.31416371,0.00019324,2]
[321839955,1712559038837,-938.20053297,0.00019593,2]
[321839956,1712559038846,-1050.31416371,0.0001964,2]
[321839957,1712559038856,-200.0,0.0001984,2]
[321839958,1712559038865,-210.0,0.00019842,2]
[321839959,1712559038874,-210.0,0.00019842,2]
[321839960,1712559038883,-279.576976,0.00019878,2]
[321839961,1712559038892,-938.20053297,0.0001992,2]
[321839962,1712559038902,-3380.4795884,0.00019946,2]
[321839963,1712559038912,-3158.03215725,0.00019948,2]
[321839964,1712559038921,-1050.31416371,0.00019955,2]
[321839965,1712559038931,-7213.25815787,0.0001998,2]
[321839966,1712559038941,-499.99,0.0001998,2]
[321839967,1712559038950,-3210.29,0.0001998,2]
[321839968,1712559038960,-2000.0,0.0002,2]
[321839969,1712559038970,-161.308845,0.0002,2]
[321839970,1712559038983,-279.57697596,0.00020024,2]
[321839971,1712559038993,-3380.4795884,0.00020026,2]
[321839972,1712559039003,-379.61,0.00020125,2]
[321839973,1712559039012,-279.57697596,0.0002017,2]
[321839974,1712559039023,-938.20053297,0.00020247,2]
[321839975,1712559039032,-1050.31416371,0.0002027,2]
[321839976,1712559039042,-150.0,0.00020278,2]
[321839977,1712559039051,-279.57697596,0.00020316,2]
[321839978,1712559039060,-279.57697596,0.00020462,2]
[321839979,1712559039069,-150.0,0.000205,2]
[321839980,1712559039079,-638.0,0.0002052,2]
[321839981,1712559039088,-3380.4795884,0.00020547,2]
[321839982,1712559039098,-938.20053297,0.00020573,2]
[321839983,1712559039107,-1050.31416371,0.00020585,2]
[321839984,1712559039116,-279.57697596,0.00020608,2]
[321839985,1712559039128,-150.0,0.00020659,2]
[321839986,1712559039137,-17076.0285,0.00020721,2]
[321839987,1712559039147,-209.4671,0.00020721,2]
[321839988,1712559039156,-279.57697596,0.00020754,2]
[321839989,1712559039168,-3380.4795884,0.00020755,2]
[321839990,1712559039178,-454.43745,0.0002079,2]
[321839991,1712559039187,-150.0,0.000208,2]
[321839992,1712559039196,-454.43744,0.0002082,2]
[321839993,1712559039205,-500.0,0.00020821,2]
[321839994,1712559039214,-500.0,0.00020821,2]
[321839995,1712559039224,-500.0,0.00020821,2]
[321839996,1712559039235,-500.0,0.00020821,2]
[321839997,1712559039244,-565.22,0.00020821,2]
[321839998,1712559039253,-500.0,0.00020821,2]
[321839999,1712559039262,-512.72364323,0.00020821,2]
[321840000,1712559039272,-500.0,0.00020821,2]
[321840001,1712559039281,-500.0,0.00020821,2]
[321840002,1712559039289,-500.0,0.00020821,2]
[321840003,1712559039299,-500.0,0.00020821,2]
[321840004,1712559039308,-500.0,0.00020821,2]
[321840005,1712559039319,-500.0,0.00020821,2]
[321840006,1712559039330,-500.0,0.00020821,2]
[321840007,1712559039340,-500.0,0.00020821,2]
[321840008,1712559039350,-500.0,0.00020821,2]
[321840009,1712559039361,-586.91614917,0.00020821,2]
[321840010,1712559039370,-500.0,0.00020821,2]
[321840011,1712559039379,-500.0,0.00020821,2]
[321840012,1712559039388,-493.0067169,0.00020821,2]
[321840013,1712559039397,-500.0,0.00020821,2]
[321840014,1712559039406,-530.72459498,0.00020821,2]
[321840015,1712559039416,-721.72,0.00020821,2]
[321840016,1712559039425,-721.72,0.00020821,2]
[321840017,1712559039435,-721.72,0.00020821,2]
[321840018,1712559039445,-721.72,0.00020821,2]
[321840019,1712559039454,-721.72,0.00020821,2]
[321840020,1712559039465,-500.0,0.00020821,2]
[321840021,1712559039475,-500.0,0.00020821,2]
[321840022,1712559039484,-500.0,0.00020821,2]
[321840023,1712559039493,-344.3253145,0.00020821,2]
[321840024,1712559039502,-1033.88,0.00020821,2]
[321840025,1712559039511,-1033.88,0.00020821,2]
[321840026,1712559039520,-1033.88,0.00020821,2]
[321840027,1712559039530,-1033.88,0.00020821,2]
[321840028,1712559039541,-1033.88,0.00020821,2]
[321840029,1712559039550,-500.0,0.00020821,2]
[321840030,1712559039561,-500.0,0.00020821,2]
[321840031,1712559039570,-500.0,0.00020821,2]
[321840032,1712559039579,-500.0,0.00020821,2]
[321840033,1712559039589,-500.0,0.00020821,2]
[321840034,1712559039597,-500.0,0.00020821,2]
[321840035,1712559039608,-500.0,0.00020821,2]
[321840036,1712559039618,-500.0,0.00020821,2]
[321840037,1712559039627,-500.0,0.00020821,2]
[321840038,1712559039638,-500.0,0.00020821,2]
[321840039,1712559039648,-500.0,0.00020821,2]
[321840040,1712559039657,-500.0,0.00020821,2]
[321840041,1712559039666,-645.94252974,0.00020821,2]
[321840042,1712559039676,-500.0,0.00020821,2]
[321840043,1712559039685,-500.0,0.00020821,2]
[321840044,1712559039694,-557.31185477,0.00020821,2]
[321840045,1712559039703,-500.0,0.00020821,2]
[321840046,1712559039711,-500.0,0.00020821,2]
[321840047,1712559039721,-500.0,0.00020821,2]
[321840048,1712559039730,-500.0,0.00020821,2]
[321840049,1712559039739,-500.0,0.00020821,2]
[321840050,1712559039748,-500.0,0.00020821,2]
[321840051,1712559039759,-500.0,0.00020821,2]
[321840052,1712559039768,-500.0,0.00020821,2]
[321840053,1712559039778,-500.0,0.00020821,2]
[321840054,1712559039786,-500.0,0.00020821,2]
[321840055,1712559039796,-500.0,0.00020821,2]
[321840056,1712559039806,-500.0,0.00020821,2]
[321840057,1712559039815,-500.0,0.00020821,2]
[321840058,1712559039824,-500.0,0.00020821,2]
[321840059,1712559039833,-435.41438008,0.00020821,2]
[321840060,1712559039843,-500.0,0.00020821,2]
[321840061,1712559039851,-500.0,0.00020821,2]
[321840062,1712559039861,-622.18,0.00020821,2]
[321840063,1712559039870,-500.0,0.00020821,2]
[321840064,1712559039879,-500.0,0.00020821,2]
[321840065,1712559039889,-520.94094687,0.00020821,2]
[321840066,1712559039898,-500.0,0.00020821,2]
[321840067,1712559039907,-500.0,0.00020821,2]
[321840068,1712559039918,-581.75,0.00020821,2]
[321840069,1712559039927,-500.0,0.00020821,2]
[321840070,1712559039936,-500.0,0.00020821,2]
[321840071,1712559039945,-629.6,0.00020821,2]
[321840072,1712559039956,-500.0,0.00020821,2]
[321840073,1712559039966,-500.0,0.00020821,2]
[321840074,1712559039975,-500.0,0.00020821,2]
[321840075,1712559039984,-500.0,0.00020821,2]
[321840076,1712559039993,-500.0,0.00020821,2]
[321840077,1712559040002,-500.0,0.00020821,2]
[321840078,1712559040012,-500.0,0.00020821,2]
[321840079,1712559040021,-500.0,0.00020821,2]
[321840080,1712559040032,-500.0,0.00020821,2]
[321840081,1712559040041,-500.0,0.00020821,2]
[321840082,1712559040050,-500.0,0.00020821,2]
[321840083,1712559040060,-500.0,0.00020821,2]
[321840084,1712559040069,-500.0,0.00020821,2]
[321840085,1712559040079,-500.0,0.00020821,2]
[321840086,1712559040088,-500.0,0.00020821,2]
[321840087,1712559040097,-500.0,0.00020821,2]
[321840088,1712559040106,-500.0,0.00020821,2]
[321840089,1712559040116,-500.0,0.00020821,2]
[321840090,1712559040125,-500.0,0.00020821,2]
[321840091,1712559040134,-500.0,0.00020821,2]
[321840092,1712559040143,-500.0,0.00020821,2]
[321840093,1712559040152,-500.0,0.00020821,2]
[321840094,1712559040165,-629.6,0.00020821,2]
[321840095,1712559040175,-500.0,0.00020821,2]
[321840096,1712559040187,-500.0,0.00020821,2]
[321840097,1712559040196,-510.32,0.00020821,2]
[321840098,1712559040206,-500.0,0.00020821,2]
[321840099,1712559040215,-500.0,0.00020821,2]
[321840100,1712559040224,-500.0,0.00020821,2]
[321840101,1712559040234,-500.0,0.00020821,2]
[321840102,1712559040244,-500.0,0.00020821,2]
[321840103,1712559040253,-500.0,0.00020821,2]
[321840104,1712559040262,-301.24,0.00020821,2]
[321840105,1712559040272,-214.89,0.00020821,2]
[321840106,1712559040282,-521.37,0.00020821,2]
[321840107,1712559040292,-500.0,0.00020821,2]
[321840108,1712559040301,-500.0,0.00020821,2]
[321840109,1712559040310,-500.0,0.00020821,2]
[321840110,1712559040319,-500.0,0.00020821,2]
[321840111,1712559040329,-500.0,0.00020821,2]
[321840112,1712559040338,-500.0,0.00020821,2]
[321840113,1712559040347,-500.0,0.00020821,2]
[321840114,1712559040357,-500.0,0.00020821,2]
[321840115,1712559040366,-500.0,0.00020821,2]
[321840116,1712559040375,-500.0,0.00020821,2]
[321840117,1712559040385,-246.41030082,0.00020821,2]
[321840119,1712559040394,-647.70734526,0.00020821,2]
[321840121,1712559040403,-500.0,0.00020821,2]
[321840123,1712559040412,-500.0,0.00020821,2]
[321840124,1712559040422,-500.0,0.00020821,2]
[321840125,1712559040431,-500.0,0.00020821,2]
[321840126,1712559040440,-500.0,0.00020821,2]
[321840127,1712559040450,-500.0,0.00020821,2]
[321840128,1712559040459,-547.42049256,0.00020821,2]
[321840129,1712559040469,-500.0,0.00020821,2]
[321840130,1712559040478,-500.0,0.00020821,2]
[321840131,1712559040487,-500.0,0.00020821,2]
[321840132,1712559040497,-500.0,0.00020821,2]
[321840133,1712559040506,-484.0061848,0.00020821,2]
[321840134,1712559040515,-596.67369105,0.00020821,2]
[321840135,1712559040525,-527.73690079,0.00020821,2]
[321840136,1712559040534,-500.0,0.00020821,2]
[321840137,1712559040543,-528.29591391,0.00020821,2]
[321840138,1712559040553,-516.98370369,0.00020821,2]
[321840139,1712559040563,-500.0,0.00020821,2]